bitfinex-derivatives/quotes_BNBF0:USTF0_20250617
["timestamp","ask_amount","ask_price","bid_price","bid_amount"]
[1750156559050,0.52581059,654.1,654.02,1.377]
[1750156559253,1.50102722,654.08,654.02,1.377]
[1750156559548,1.50102722,654.07,654.02,1.377]
[1750156559950,1.50102722,654.08,654.02,1.377]
[1750156560154,1.50102722,654.07,654.02,1.377]
[1750156560654,1.50102722,654.08,654.02,1.377]
[1750156560856,1.50102722,654.06,654.02,1.377]
[1750156561150,2.02683781,654.06,654.02,1.377]
[1750156561353,0.52581059,654.05,654.02,1.377]
[1750156561555,1.50102722,654.06,654.02,1.377]
[1750156562149,1.50102722,654.05,654.02,1.377]
[1750156563656,1.50102722,654.04,654.02,1.377]
[1750156564453,1.50102722,654.05,654.02,1.377]
[1750156564650,1.50102722,654.06,654.02,1.377]
[1750156564949,0.52581059,654.05,654.02,1.377]
[1750156565150,0.52581059,654.04,654.02,1.377]
[1750156565453,0.52581059,654.19,654.02,1.377]
[1750156565652,0.52581059,654.18,654.02,1.377]
[1750156565851,0.52581059,654.17,654.02,1.377]
[1750156566052,0.52581059,654.16,654.02,1.377]
[1750156566250,0.52581059,654.15,654.02,1.377]
[1750156566454,0.52581059,654.14,654.02,1.377]
[1750156566655,0.52581059,654.13,654.02,1.377]
[1750156566855,0.52581059,654.12,654.02,1.377]
[1750156567053,0.52581059,654.11,654.02,1.377]
[1750156567256,0.52600714,654.1,654.02,1.377]
[1750156567453,0.52600714,654.09,654.02,1.377]
[1750156567658,0.52600714,654.08,654.02,1.377]
[1750156567852,2.24976549,654.14,654.02,1.377]
[1750156568058,2.77576932,654.13,654.02,1.377]
[1750156568255,2.77577039,654.12,654.02,1.377]
[1750156568459,0.5260049,654.11,654.02,1.377]
[1750156568659,0.5260049,654.1,654.02,1.377]
[1750156568854,0.5260049,654.09,654.02,1.377]
[1750156569059,0.5260049,654.08,654.02,1.377]
[1750156569353,0.5260049,654.07,654.02,1.377]
[1750156569658,0.5260049,654.06,654.02,1.377]
[1750156569861,0.5260049,654.05,654.02,1.377]
[1750156570161,0.52616606,654.04,654.02,1.377]
[1750156570361,0.52616606,654.03,654.02,1.377]
[1750156575963,0.52637171,654.03,654.02,1.377]
[1750156578766,0.52661747,654.03,654.02,1.377]
[1750156581566,2.24976549,654.17,654.02,1.377]
[1750156581767,0.52670007,654.16,654.02,1.377]
[1750156581962,0.52670007,654.15,654.02,1.377]
[1750156582162,0.52670007,654.14,654.02,1.377]
[1750156582362,2.24976549,654.11,654.02,1.377]
[1750156582663,0.52670007,654.1,654.02,1.377]
[1750156582862,0.52670007,654.09,654.02,1.377]
[1750156583061,0.52670007,654.08,654.02,1.377]
[1750156583267,0.52670007,654.07,654.02,1.377]
[1750156583463,0.52670007,654.06,654.02,1.377]
[1750156583667,0.52670007,654.05,654.02,1.377]
[1750156583867,0.52670007,654.04,654.02,1.377]
[1750156584166,0.52670007,654.03,654.02,1.377]
[1750156584562,0.52685673,654.03,654.02,1.377]
[1750156585070,0.79295958,654.03,654.02,1.377]
[1750156587771,0.79321577,654.03,654.02,1.377]
[1750156588068,3.04298126,654.03,654.02,1.377]
[1750156588372,0.79321577,654.03,654.02,1.377]
[1750156589471,3.04298126,654.03,654.02,1.377]
[1750156589775,0.79321577,654.03,654.02,1.377]
[1750156590375,0.79334282,654.03,654.02,1.377]
[1750156590575,0.26610285,654.03,654.02,1.377]
[1750156590775,0.79334372,654.03,654.02,1.377]
[1750156591070,3.05340707,654.03,654.02,1.377]
[1750156592191,0.79334372,654.03,654.02,1.377]
[1750156593677,0.79339697,654.03,654.02,1.377]
[1750156594877,1.50739993,654.15,654.02,1.377]
[1750156595073,0.52729412,654.14,654.02,1.377]
[1750156595274,0.52729412,654.13,654.02,1.377]
[1750156595477,0.52729412,654.12,654.02,1.377]
[1750156595771,0.52729412,654.17,654.02,1.377]
[1750156595974,0.52729412,654.16,654.02,1.377]
[1750156596174,0.52729412,654.15,654.02,1.377]
[1750156596374,1.12885148,654.04,654.02,1.377]
[1750156596775,1.12885148,654.06,654.02,1.377]
[1750156596975,1.12885148,654.07,654.02,1.377]
[1750156597373,1.12885148,654.1,654.02,1.377]
[1750156597779,1.12885148,654.11,654.02,1.377]
[1750156598374,1.12885148,654.12,654.02,1.377]
[1750156599274,1.12885148,654.14,654.02,1.377]
[1750156599574,1.12885148,654.13,654.02,1.377]
[1750156600380,1.12885148,654.14,654.02,1.377]
[1750156601275,0.26605098,654.27,654.02,1.377]
[1750156601476,1.12613808,654.15,654.02,1.377]
[1750156602478,1.12613808,654.16,654.02,1.377]
[1750156602680,1.12613808,654.15,654.02,1.377]
[1750156603282,1.12613808,654.16,654.02,1.377]
[1750156605382,1.12613808,654.17,654.02,1.377]
[1750156605781,1.12613808,654.16,654.02,1.377]
[1750156605982,1.12613808,654.16,653.93,0.952]
[1750156606477,1.12613808,654.17,653.93,0.952]
[1750156606879,1.12613808,654.16,653.93,0.952]
[1750156607079,1.12613808,654.17,653.93,0.952]
[1750156607283,1.12613808,654.18,653.93,0.952]
[1750156608379,1.12613808,654.19,653.93,0.952]
[1750156608678,1.12613808,654.18,653.93,0.952]
[1750156608979,1.12613808,654.18,653.94,1.511]
[1750156609181,1.12613808,654.19,653.94,1.511]
[1750156609382,1.12613808,654.18,653.94,1.511]
[1750156610080,1.12613808,654.19,653.94,1.511]
[1750156611281,1.12613808,654.2,653.94,1.511]
[1750156612380,1.12613808,654.2,653.95,1.295]
[1750156613881,1.12613808,654.24,653.95,1.295]
[1750156614184,0.26605098,654.27,653.95,1.295]
[1750156614185,1.12613808,654.15,653.95,1.295]
[1750156614885,1.12613808,654.14,653.95,1.295]
[1750156615287,1.12613808,654.15,653.95,1.295]
[1750156616187,1.12613808,654.15,653.96,1.117]
[1750156616483,1.12613808,654.17,653.96,1.117]
[1750156616983,1.12613808,654.18,653.96,1.117]
[1750156617383,1.12613808,654.2,653.96,1.117]
[1750156618285,0.26605098,654.27,653.96,1.117]
[1750156618286,1.12613808,654.21,653.96,1.117]
[1750156619188,1.12613808,654.22,653.96,1.117]
[1750156619389,1.12613808,654.21,653.96,1.117]
[1750156620186,1.12613808,654.2,653.96,1.117]
[1750156620392,1.12613808,654.2,653.97,1.46]
[1750156621491,1.12613808,654.19,653.97,1.46]
[1750156621987,1.12613808,654.17,653.97,1.46]
[1750156622188,1.12613808,654.16,653.97,1.46]
[1750156623489,1.12613808,654.18,653.97,1.46]
[1750156623688,1.12613808,654.12,653.97,1.46]
[1750156623894,1.12613808,654.09,653.97,1.46]
[1750156624390,1.12613808,654.08,653.97,1.46]
[1750156626296,0.52404695,654.24,653.97,1.46]
[1750156626297,1.12613808,654.09,653.97,1.46]
[1750156627496,1.12613808,654.08,653.97,1.46]
[1750156627693,1.12613808,654.07,653.97,1.46]
[1750156627991,1.12613808,654.06,653.97,1.46]
[1750156629492,1.12613808,654.05,653.97,1.46]
[1750156630194,1.12613808,654.04,653.97,1.46]
[1750156630993,1.12613808,654.05,653.97,1.46]
[1750156631495,1.12613808,654.06,653.97,1.46]
[1750156632395,1.12613808,654.05,653.97,1.46]
[1750156632598,1.12613808,654.06,653.97,1.46]
[1750156632893,1.12613808,654.04,653.97,1.46]
[1750156633095,1.12613808,654.03,653.97,1.46]
[1750156633698,1.12613808,654.04,653.97,1.46]
[1750156633900,1.12613808,654.03,653.97,1.46]
[1750156634099,1.12613808,654.02,653.97,1.46]
[1750156634500,1.12613808,654.03,653.97,1.46]
[1750156635000,1.12613808,653.99,653.97,1.46]
[1750156635598,1.12613808,653.98,653.97,1.46]
[1750156636300,1.12613808,654.19,653.97,1.46]
[1750156636602,1.12613808,654.18,653.97,1.46]
[1750156636805,1.12613808,654.19,653.97,1.46]
[1750156636997,1.12613808,654.18,653.97,1.46]
[1750156637198,1.12613808,654.2,653.97,1.46]
[1750156639298,1.12613808,654.19,653.97,1.46]
[1750156639602,1.12613808,654.19,653.96,1.117]
[1750156639998,1.12613808,654.2,653.96,1.117]
[1750156640404,1.12613808,654.19,653.96,1.117]
[1750156641104,1.12613808,654.2,653.96,1.117]
[1750156641299,1.12613808,654.14,653.96,1.117]
[1750156642000,1.12613808,654.12,653.96,1.117]
[1750156642404,1.12613808,654.1,653.96,1.117]
[1750156644101,1.12613808,654.09,653.96,1.117]
[1750156644708,1.12613808,654.08,653.96,1.117]
[1750156645405,1.12613808,654.05,653.96,1.117]
[1750156645605,0.26605098,654.27,653.96,1.117]
[1750156645606,1.12613808,654.03,653.96,1.117]
[1750156645808,1.12613808,654.21,653.96,1.117]
[1750156646008,0.26605098,654.27,653.96,1.117]
[1750156646009,1.12613808,654.23,653.96,1.117]
[1750156646505,1.12613808,654.22,653.96,1.117]
[1750156646708,1.12613808,654.24,653.96,1.117]
[1750156647410,0.26605098,654.27,653.96,1.117]
[1750156647411,1.12613808,654.23,653.96,1.117]
[1750156647605,1.12605134,654.23,653.96,1.117]
[1750156649006,1.12605134,654.19,653.96,1.117]
[1750156649311,1.12605134,654.17,653.94,1.511]
[1750156649707,1.12605134,654.11,653.94,1.511]
[1750156649910,1.12605134,654.03,653.94,1.511]
[1750156650308,1.12605134,654.02,653.94,1.511]
[1750156650811,1.12605134,654.0,653.94,1.511]
[1750156651409,1.12605134,653.97,653.94,1.511]
[1750156651611,1.50739993,654.05,653.94,1.511]
[1750156651913,1.50739993,654.07,653.94,1.511]
[1750156652310,1.50739993,654.06,653.94,1.511]
[1750156652714,1.12703051,654.06,653.94,1.511]
[1750156652910,1.12703051,654.08,653.94,1.511]
[1750156653109,1.12703051,654.01,653.94,1.511]
[1750156653314,1.50739993,654.08,653.94,1.511]
[1750156654213,1.50739993,654.06,653.94,1.511]
[1750156654514,1.50739993,654.05,653.94,1.511]
[1750156654814,2.03540328,654.05,653.94,1.511]
[1750156655112,0.52800335,654.04,653.94,1.511]
[1750156655316,1.50739993,654.05,653.94,1.511]
[1750156655512,1.50739993,654.02,653.94,1.511]
[1750156655918,1.50739993,654.02,653.91,2.451]
[1750156656118,1.50739993,653.96,653.91,2.451]
[1750156656315,1.50739993,653.97,653.91,2.451]
[1750156657420,1.50739993,653.98,653.91,2.451]
[1750156657616,1.12650391,653.92,653.91,2.451]
[1750156657817,0.26605098,654.27,653.91,2.451]
[1750156657818,1.12650391,654.0,653.91,2.451]
[1750156658016,1.12650391,654.02,653.91,2.451]
[1750156658420,1.12650391,654.03,653.91,2.451]
[1750156658621,1.50739993,654.26,653.91,2.451]
[1750156658622,1.12650391,654.04,653.91,2.451]
[1750156659721,1.12650391,654.04,653.92,1.099]
[1750156660820,1.12650391,653.99,653.92,1.099]
[1750156661021,1.12650391,654.0,653.92,1.099]
[1750156661616,1.12683437,653.99,653.92,1.099]
[1750156661820,1.12683437,654.0,653.92,1.099]
[1750156662221,1.12683437,653.99,653.92,1.099]
[1750156662821,1.12683437,653.98,653.92,1.099]
[1750156663817,1.12683437,654.04,653.92,1.099]
[1750156664117,1.12683437,654.07,653.92,1.099]
[1750156664316,1.12683437,654.06,653.92,1.099]
[1750156664518,1.12683437,654.07,653.92,1.099]
[1750156664717,1.12683437,654.08,653.92,1.099]
[1750156665621,1.12683437,654.11,653.92,1.099]
[1750156666422,1.12683437,654.12,653.92,1.099]
[1750156668520,1.12683437,654.06,653.92,1.099]
[1750156669723,1.12683437,654.07,653.92,1.099]
[1750156670623,1.12683437,654.06,653.92,1.099]
[1750156670923,1.12683437,654.07,653.92,1.099]
[1750156671420,1.12683437,654.06,653.92,1.099]
[1750156672726,1.12683437,654.05,653.92,1.099]
[1750156673128,1.12683437,654.1,653.92,1.099]
[1750156673324,1.12683437,654.16,653.92,1.099]
[1750156673827,1.12683437,654.17,653.92,1.099]
[1750156674224,1.12683437,654.18,653.92,1.099]
[1750156676335,1.12683437,654.19,653.92,1.099]
[1750156676734,1.12683437,654.19,653.91,2.06]
[1750156680535,1.12683437,654.15,653.91,2.06]
[1750156680730,1.12683437,654.16,653.92,0.955]
[1750156681433,1.12683437,654.18,653.92,0.955]
[1750156681835,1.12683437,654.17,653.92,0.955]
[1750156682036,1.12683437,654.16,653.93,1.46]
[1750156682434,1.12683437,654.19,653.93,1.46]
[1750156682836,1.12683437,654.2,653.93,1.46]
[1750156683034,1.12683437,654.21,653.93,1.46]
[1750156683439,1.12683437,654.2,653.93,1.46]
[1750156683636,1.12683437,654.21,653.93,1.46]
[1750156684140,1.12683437,654.22,653.93,1.46]
[1750156686240,1.12683437,654.16,653.93,1.46]
[1750156689141,1.12683437,654.24,653.93,1.46]
[1750156689339,1.12683437,654.3,653.93,1.46]
[1750156690145,1.12683437,654.31,653.93,1.46]
[1750156690645,1.12683437,654.32,653.93,1.46]
[1750156691445,1.12683437,654.3,653.93,1.46]
[1750156691649,1.12683437,654.31,653.93,1.46]
[1750156692548,0.26604081,654.36,653.93,1.46]
[1750156692549,1.12683437,654.29,653.93,1.46]
[1750156693446,1.12683437,654.22,653.93,1.46]
[1750156693649,1.12683437,654.2,653.93,1.46]
[1750156693851,1.12683437,654.21,653.93,1.46]
[1750156694047,1.12683437,654.15,653.93,1.46]
[1750156694350,1.65548237,654.14,653.93,1.46]
[1750156694552,2.26109989,654.03,653.94,1.274]
[1750156694750,2.26109989,654.01,653.94,1.274]
[1750156694946,0.528195,654.0,653.94,1.274]
[1750156695152,0.528195,653.99,653.94,1.274]
[1750156695347,1.50007605,653.98,653.94,1.274]
[1750156695652,0.52819052,654.0,653.94,1.274]
[1750156695948,1.50007605,653.96,653.94,1.274]
[1750156696148,1.50007605,653.95,653.94,1.274]
[1750156696353,2.02826657,653.97,653.94,1.274]
[1750156696554,0.52819052,653.96,653.94,1.274]
[1750156696753,1.49897883,653.97,653.94,1.274]
[1750156697253,1.49897883,653.98,653.94,1.274]
[1750156697455,1.49897883,654.0,653.94,1.274]
[1750156697655,0.52819052,654.01,653.94,1.274]
[1750156697953,0.52819052,654.07,653.94,1.274]
[1750156698155,0.52819052,654.06,653.94,1.274]
[1750156698351,0.52755555,654.05,653.94,1.274]
[1750156698555,2.78865544,654.04,653.94,1.274]
[1750156698853,1.4983508,654.01,653.94,1.274]
[1750156699050,2.02590635,654.02,653.94,1.274]
[1750156699254,0.52755555,654.01,653.94,1.274]
[1750156699451,0.52789229,654.06,653.94,1.274]
[1750156699653,1.1244468,653.95,653.94,1.274]
[1750156700152,1.1244468,653.96,653.94,1.274]
[1750156700352,1.1244468,653.96,653.92,0.955]
[1750156701154,1.1244468,653.97,653.92,0.955]
[1750156701457,1.1244468,653.98,653.92,0.955]
[1750156701655,1.1244468,653.99,653.92,0.955]
[1750156702860,1.05775844,653.98,653.39,0.91]
[1750156703160,1.12432581,653.83,653.39,0.91]
[1750156703359,1.05775844,653.82,653.39,0.91]
[1750156703555,1.05775844,653.81,653.39,0.91]
[1750156703858,1.05775844,653.8,653.39,0.91]
[1750156704055,1.05775844,653.79,653.39,0.91]
[1750156704256,1.05775844,653.78,653.39,0.91]
[1750156704555,1.05775844,653.77,653.39,0.91]
[1750156704759,1.05775844,653.76,653.39,0.91]
[1750156704956,1.05775844,653.75,653.39,0.91]
[1750156705257,1.05775844,653.74,653.39,0.91]
[1750156705457,1.05775844,653.73,653.39,0.91]
[1750156705659,1.05775844,653.72,653.39,0.91]
[1750156705858,1.05775844,653.71,653.39,0.91]
[1750156706059,1.05775844,653.7,653.39,0.91]
[1750156706259,1.05775844,653.69,653.39,0.91]
[1750156706460,1.05775844,653.68,653.39,0.91]
[1750156706661,1.05775844,653.67,653.39,0.91]
[1750156706855,1.12432581,654.03,653.39,0.91]
[1750156706856,1.05775844,653.66,653.39,0.91]
[1750156707059,1.05775844,653.65,653.39,0.91]
[1750156707256,1.05775844,653.64,653.39,0.91]
[1750156707561,1.12432581,654.07,653.39,0.91]
[1750156707856,1.04679892,654.06,653.39,0.91]
[1750156708060,1.04679892,654.05,653.39,0.91]
[1750156708260,1.04679892,654.04,653.39,0.91]
[1750156708460,1.04679892,654.03,653.39,0.91]
[1750156708657,1.04679892,654.02,653.39,0.91]
[1750156708860,1.04679892,654.01,653.39,0.91]
[1750156709061,1.04679892,654.0,653.39,0.91]
[1750156709255,1.04679892,653.99,653.39,0.91]
[1750156709460,1.04679892,653.98,653.39,0.91]
[1750156709760,1.04679892,653.97,653.39,0.91]
[1750156709961,1.04679892,653.96,653.39,0.91]
[1750156710163,1.04679892,653.95,653.39,0.91]
[1750156710465,1.04679892,653.94,653.39,0.91]
[1750156710659,1.04679892,653.93,653.39,0.91]
[1750156710862,1.04679892,653.92,653.39,0.91]
[1750156711062,1.04679892,653.91,653.39,0.91]
[1750156711261,1.04679892,653.9,653.39,0.91]
[1750156711458,1.04679892,653.89,653.39,0.91]
[1750156711658,1.04679892,653.88,653.39,0.91]
[1750156711963,1.04679892,653.87,653.39,0.91]
[1750156712161,1.04679892,653.86,653.39,0.91]
[1750156712363,1.04679892,653.85,653.39,0.91]
[1750156712559,1.04679892,653.84,653.39,0.91]
[1750156712766,1.04679892,653.83,653.39,0.91]
[1750156712965,1.04679892,653.82,653.39,0.91]
[1750156713266,1.12432581,654.14,653.39,0.91]
[1750156713565,2.17102041,654.13,653.39,0.91]
[1750156713763,1.0466946,654.12,653.39,0.91]
[1750156714061,1.4983508,654.31,653.39,0.91]
[1750156714265,1.12459035,654.13,653.39,0.91]
[1750156714466,1.04669887,654.12,653.39,0.91]
[1750156714668,1.04669887,654.11,653.39,0.91]
[1750156714867,1.04669887,654.1,653.39,0.91]
[1750156715068,1.04669887,654.09,653.4,0.30609121]
[1750156715267,1.04669887,654.08,653.4,0.30609121]
[1750156715568,1.04669887,654.07,653.4,0.30609121]
[1750156715769,1.04669887,654.06,653.4,0.30609121]
[1750156715966,1.04669887,654.05,653.4,0.30609121]
[1750156716165,1.04669887,654.04,653.4,0.30609121]
[1750156716370,1.04669887,654.03,653.4,0.30609121]
[1750156716571,1.04669887,654.02,653.4,0.30609121]
[1750156716867,1.04669887,654.01,653.4,0.30609121]
[1750156717072,1.04669887,654.0,653.4,0.30609121]
[1750156717271,1.04669887,653.99,653.4,0.30609121]
[1750156717471,1.04669887,653.98,653.4,0.30609121]
[1750156717772,1.04691467,653.97,653.4,0.30609121]
[1750156717966,1.04691467,653.96,653.4,0.30609121]
[1750156718166,1.04691467,653.95,653.4,0.30609121]
[1750156718369,0.26607335,654.48,653.4,0.30609121]
[1750156718370,1.04691467,653.94,653.4,0.30609121]
[1750156718572,1.04691467,653.93,653.4,0.30609121]
[1750156718771,1.04691467,653.92,653.4,0.30609121]
[1750156718967,1.04691467,653.91,653.4,0.30609121]
[1750156719172,1.04691467,653.9,653.4,0.30609121]
[1750156719374,1.04691467,653.89,653.4,0.30609121]
[1750156719672,1.04691467,653.88,653.4,0.30609121]
[1750156719969,1.04691467,653.87,653.4,0.30609121]
[1750156720170,1.04691467,653.86,653.4,0.30609121]
[1750156720474,1.04691467,653.85,653.4,0.30609121]
[1750156720672,1.04691467,653.84,653.4,0.30609121]
[1750156720874,1.04691467,653.83,653.4,0.30609121]
[1750156721175,1.04691467,653.82,653.4,0.30609121]
[1750156721372,1.04691467,653.81,653.4,0.30609121]
[1750156721575,1.12482133,654.19,653.4,0.30609121]
[1750156721776,1.04681903,654.18,653.4,0.30609121]
[1750156721977,1.04681903,654.17,653.4,0.30609121]
[1750156722173,1.04681903,654.16,653.4,0.30609121]
[1750156722374,1.04681903,654.15,653.41,1.454]
[1750156722679,1.04681903,654.14,653.42,0.30608184]
[1750156722877,1.04681903,654.13,653.42,0.30608184]
[1750156723075,1.04681903,654.12,653.42,0.30608184]
[1750156723277,1.04681903,654.11,653.42,0.30608184]
[1750156723475,1.04681903,654.1,653.42,0.30608184]
[1750156723677,1.04681903,654.09,653.42,0.30608184]
[1750156723978,1.04681903,654.08,653.42,0.30608184]
[1750156724178,1.04681903,654.07,653.42,0.30608184]
[1750156724374,1.04681903,654.06,653.42,0.30608184]
[1750156724680,1.04681903,654.05,653.43,1.441]
[1750156724880,1.04681903,654.04,653.44,0.30607247]
[1750156725082,1.04681903,654.03,653.44,0.30607247]
[1750156725375,1.04681903,654.02,653.44,0.30607247]
[1750156725580,1.04681903,654.01,653.44,0.30607247]
[1750156725877,1.04681903,654.0,653.44,0.30607247]
[1750156726080,1.04681903,653.99,653.44,0.30607247]
[1750156726280,1.04681903,653.98,653.44,0.30607247]
[1750156726476,1.04681903,653.97,653.44,0.30607247]
[1750156726674,1.04681903,653.96,653.44,0.30607247]
[1750156726876,1.04681903,653.95,653.44,0.30607247]
[1750156727177,1.04681903,653.94,653.44,0.30607247]
[1750156727380,1.04681903,653.93,653.44,0.30607247]
[1750156727574,1.12482133,654.18,653.44,0.30607247]
[1750156727575,1.04681903,653.92,653.44,0.30607247]
[1750156727775,1.04681903,653.91,653.44,0.30607247]
[1750156727975,1.04681903,653.9,653.44,0.30607247]
[1750156728175,1.04681903,653.89,653.44,0.30607247]
[1750156728379,1.04681903,653.88,653.44,0.30607247]
[1750156728580,1.04681903,653.87,653.44,0.30607247]
[1750156728775,1.04681903,653.86,653.44,0.30607247]
[1750156728980,1.04681903,653.85,653.44,0.30607247]
[1750156729181,1.04681903,653.84,653.44,0.30607247]
[1750156729377,1.04681903,653.83,653.44,0.30607247]
[1750156729677,1.04681903,653.82,653.44,0.30607247]
[1750156729877,1.04681903,653.81,653.44,0.30607247]
[1750156730076,1.04681903,653.8,653.44,0.30607247]
[1750156730381,1.04681903,653.79,653.44,0.30607247]
[1750156730578,1.12482133,654.17,653.44,0.30607247]
[1750156730777,1.04635106,654.16,653.44,0.30607247]
[1750156730980,1.04635106,654.15,653.44,0.30607247]
[1750156731276,1.04635106,654.14,653.44,0.30607247]
[1750156731481,1.04635106,654.13,653.44,0.30607247]
[1750156731782,1.04635106,654.12,653.44,0.30607247]
[1750156731983,1.04635106,654.11,653.44,0.30607247]
[1750156732180,1.04635106,654.1,653.44,0.30607247]
[1750156732383,1.12482133,654.17,653.44,0.30607247]
[1750156732384,1.04635106,654.09,653.44,0.30607247]
[1750156732585,1.04635106,654.08,653.44,0.30607247]
[1750156732880,1.04635106,654.07,653.44,0.30607247]
[1750156733084,1.04635106,654.06,653.44,0.30607247]
[1750156733280,1.04635106,654.05,653.44,0.30607247]
[1750156733484,1.04635106,654.04,653.44,0.30607247]
[1750156733682,1.12482133,654.22,653.44,0.30607247]
[1750156733683,1.04635106,654.03,653.44,0.30607247]
[1750156733887,1.04635106,654.02,653.44,0.30607247]
[1750156734087,1.04635106,654.01,653.44,0.30607247]
[1750156734386,1.04635106,654.0,653.44,0.30607247]
[1750156734583,1.04635106,653.99,653.44,0.30607247]
[1750156734782,1.04635106,653.98,653.44,0.30607247]
[1750156734985,1.04635106,653.97,653.44,0.30607247]
[1750156735183,1.04635106,653.96,653.44,0.30607247]
[1750156735385,1.04635106,653.95,653.44,0.30607247]
[1750156735584,1.12482133,654.25,653.44,0.30607247]
[1750156735585,1.04635106,653.94,653.44,0.30607247]
[1750156735889,1.04635106,653.93,653.44,0.30607247]
[1750156736088,1.12482133,654.27,653.44,0.30607247]
[1750156736287,1.01498285,654.26,653.44,0.30607247]
[1750156736589,1.01498285,654.25,653.44,0.30607247]
[1750156736789,1.01498285,654.24,653.44,0.30607247]
[1750156736983,1.01498285,654.23,653.44,0.30607247]
[1750156737188,1.01498285,654.22,653.44,0.30607247]
[1750156737386,1.01498285,654.21,653.44,0.30607247]
[1750156737592,1.01417639,654.2,653.44,0.30607247]
[1750156737791,1.12482133,654.5,653.44,0.30607247]
[1750156738087,1.0140938,654.49,653.44,0.30607247]
[1750156738290,1.0140938,654.48,653.44,0.30607247]
[1750156738490,1.0140938,654.47,653.44,0.30607247]
[1750156738787,1.0140938,654.46,653.44,0.30607247]
[1750156738990,1.0140938,654.45,653.44,0.30607247]
[1750156739186,1.12482133,654.39,653.44,0.30607247]
[1750156739387,2.13891513,654.38,653.44,0.30607247]
[1750156739591,1.0140938,654.37,653.45,1.392]
[1750156739788,1.0140938,654.36,653.47,0.30605842]
[1750156739993,1.0140938,654.35,653.47,0.30605842]
[1750156740193,1.0140938,654.34,653.47,0.30605842]
[1750156740392,1.0140938,654.33,653.47,0.30605842]
[1750156740593,1.12482133,654.38,653.47,0.30605842]
[1750156740594,1.0140938,654.32,653.47,0.30605842]
[1750156740794,1.0140938,654.31,653.47,0.30605842]
[1750156741089,1.0140938,654.3,653.47,0.30605842]
[1750156741293,1.0140938,654.29,653.47,0.30605842]
[1750156741492,1.0140938,654.28,653.47,0.30605842]
[1750156741791,1.0140938,654.27,653.47,0.30605842]
[1750156741990,1.0140938,654.26,653.47,0.30605842]
[1750156742290,1.0140938,654.25,653.47,0.30605842]
[1750156742493,1.0140938,654.24,653.47,0.30605842]
[1750156742693,1.0140938,654.23,653.47,0.30605842]
[1750156742894,1.0140938,654.22,653.47,0.30605842]
[1750156743090,1.0140938,654.21,653.47,0.30605842]
[1750156743309,1.0140938,654.2,653.47,0.30605842]
[1750156743595,1.0140938,654.19,653.47,0.30605842]
[1750156743790,1.0140938,654.18,653.47,0.30605842]
[1750156744094,1.0140938,654.17,653.47,0.30605842]
[1750156744393,1.0140938,654.16,653.47,0.30605842]
[1750156744594,1.0140938,654.15,653.47,0.30605842]
[1750156744790,1.0140938,654.14,653.47,0.30605842]
[1750156744992,1.0140938,654.13,653.47,0.30605842]
[1750156745291,1.0140938,654.12,653.47,0.30605842]
[1750156745494,1.0140938,654.11,653.47,0.30605842]
[1750156745696,1.0140938,654.1,653.47,0.30605842]
[1750156745895,1.0140938,654.09,653.47,0.30605842]
[1750156746089,1.12482133,654.39,653.47,0.30605842]
[1750156746090,1.0140938,654.08,653.47,0.30605842]
[1750156746291,1.0140938,654.07,653.48,1.105]
[1750156746491,1.0140938,654.06,653.48,1.105]
[1750156746695,1.0140938,654.05,653.48,1.105]
[1750156746891,1.0140938,654.04,653.48,1.105]
[1750156747197,1.12482133,654.38,653.48,1.105]
[1750156747493,1.01270711,654.37,653.48,1.105]
[1750156747693,1.01270711,654.36,653.48,1.105]
[1750156747991,1.12482133,654.43,653.48,1.105]
[1750156747992,1.01270711,654.35,653.48,1.105]
[1750156748194,1.01270711,654.34,653.48,1.105]
[1750156748396,1.01270711,654.33,653.48,1.105]
[1750156748591,1.01270711,654.32,653.48,1.105]
[1750156748792,1.01270711,654.31,653.48,1.105]
[1750156749094,1.01270711,654.3,653.49,0.30604905]
[1750156749292,1.01270711,654.29,653.49,0.30604905]